[Event "New Zealand Rapid Championship"]
[Site "Wellington"]
[Date "2023.01.12"]
[Round "8.9"]
[White "Gan, Emily Cathay"]
[Black "Cummings, Nick"]
[Result "0-1"]
[TimeControl "25+5"]
[WhiteFideId "4310608"]
[BlackFideId "4301218"]
[WhiteElo "1632"]
[BlackElo "2038"]

1. c4 {[%clk 00:25:08]} e6 {[%clk 00:24:55]} {[%emt 00:00:16]} 2. Nc3 {[%clk
00:25:09]} {[%emt 00:00:04]} Nf6 {[%clk 00:24:48]} {[%emt 00:00:13]} 3. Nf3
{[%clk 00:25:08]} {[%emt 00:00:05]} d5 {[%clk 00:24:43]} {[%emt 00:00:11]} 4.
d4 {[%clk 00:24:59]} {[%emt 00:00:13]} dxc4 {[%clk 00:24:09]} {[%emt 00:00:39]}
5. e3 {[%clk 00:24:50]} {[%emt 00:00:13]} a6 {[%clk 00:23:59]} {[%emt
00:00:16]} 6. Bxc4 {[%clk 00:24:33]} {[%emt 00:00:21]} b5 {[%clk 00:23:52]}
{[%emt 00:00:12]} 7. Bd3 {[%clk 00:24:10]} {[%emt 00:00:28]} Bb7 {[%clk
00:23:55]} {[%emt 00:00:04]} 8. O-O {[%clk 00:24:07]} {[%emt 00:00:07]} Nbd7
{[%clk 00:23:58]} {[%emt 00:00:03]} 9. Re1 {[%clk 00:23:18]} {[%emt 00:00:54]}
c5 {[%clk 00:24:00]} {[%emt 00:00:02]} 10. Bc2 {[%clk 00:23:04]} {[%emt
00:00:19]} cxd4 {[%clk 00:23:44]} {[%emt 00:00:22]} 11. Nxd4 {[%clk 00:22:41]}
{[%emt 00:00:27]} Be7 {[%clk 00:23:45]} {[%emt 00:00:05]} 12. a3 {[%clk
00:22:07]} {[%emt 00:00:38]} Rc8 {[%clk 00:19:02]} {[%emt 00:04:49]} 13. e4
{[%clk 00:19:26]} {[%emt 00:02:46]} Qc7 {[%clk 00:19:00]} {[%emt 00:00:08]} 14.
Be3 {[%clk 00:18:31]} {[%emt 00:00:59]} Ne5 {[%clk 00:18:22]} {[%emt 00:00:44]}
15. Bf4 {[%clk 00:14:30]} {[%emt 00:04:06]} Nfd7 {[%clk 00:17:53]} {[%emt
00:00:34]} 16. Bg3 {[%clk 00:12:04]} {[%emt 00:02:31]} Qb6 {[%clk 00:17:31]}
{[%emt 00:00:27]} 17. Kh1 {[%clk 00:09:56]} {[%emt 00:02:12]} Nc4 {[%clk
00:16:40]} {[%emt 00:00:57]} 18. Rb1 {[%clk 00:06:48]} {[%emt 00:03:13]} Nxb2
{[%clk 00:16:15]} {[%emt 00:00:29]} 19. Rxb2 {[%clk 00:06:45]} {[%emt
00:00:08]} Rxc3 {[%clk 00:16:18]} {[%emt 00:00:03]} 20. a4 {[%clk 00:06:10]}
{[%emt 00:00:40]} b4 {[%clk 00:15:46]} {[%emt 00:00:36]} 21. Nb3 {[%clk
00:05:12]} {[%emt 00:01:04]} e5 {[%clk 00:12:59]} {[%emt 00:02:52]} 22. Qg4
{[%clk 00:04:41]} {[%emt 00:00:35]} Bf6 {[%clk 00:09:57]} {[%emt 00:03:06]} 23.
Rd1 {[%clk 00:04:05]} {[%emt 00:00:41]} Qc7 {[%clk 00:08:59]} {[%emt 00:01:05]}
24. Nd4 {[%clk 00:03:21]} {[%emt 00:00:48]} h5 {[%clk 00:06:50]} {[%emt
00:02:13]} 25. Qh3 {[%clk 00:01:32]} {[%emt 00:01:54]} g6 {[%clk 00:03:15]}
{[%emt 00:03:41]} 26. Ne6 {[%clk 00:00:59]} {[%emt 00:00:38]} Qc6 {[%emt
00:01:53]} 27. Nf4 {[%clk 00:00:08]} {[%emt 00:00:05]} exf4 {[%clk 00:01:58]}
{[%emt 00:00:25]} 28. f3 {[%clk 00:00:06]} {[%emt 00:00:07]} fxg3 {[%clk
00:01:36]} {[%emt 00:00:27]} 29. Qxg3 {[%clk 00:00:10]} {[%emt 00:00:02]} Rxc2
{[%clk 00:01:00]} {[%emt 00:00:40]} 30. Rbb1 {[%clk 00:00:10]} {[%emt
00:00:04]} O-O {[%clk 00:00:55]} {[%emt 00:00:10]} 31. h4 {[%clk 00:00:10]}
{[%emt 00:00:05]} Ne5 {[%clk 00:00:50]} {[%emt 00:00:10]} 32. f4 {[%clk
00:00:08]} {[%emt 00:00:08]} Ng4 {[%clk 00:00:51]} {[%emt 00:00:04]} 33. Kg1
{[%clk 00:00:06]} {[%emt 00:00:07]} Qc5+ {[%clk 00:00:51]} {[%emt 00:00:06]} 34.
Ra1 {[%emt 00:00:05]} 0-1

[Event "New Zealand Rapid Championship"]
[Site "Wellington"]
[Date "2023.01.12"]
[Round "8.10"]
[White "Coates, Alex"]
[Black "Burns, Christopher J"]
[Result "1-0"]
[TimeControl "25+5"]
[WhiteFideId "4311540"]
[BlackFideId "4300920"]
[WhiteElo "1496"]
[BlackElo "2031"]

1. d4 {[%clk 00:25:07]} {[%emt 00:00:02]} d5 {[%clk 00:24:23]} {[%emt
00:00:48]} 2. c4 {[%clk 00:25:08]} {[%emt 00:00:03]} dxc4 {[%clk 00:24:07]}
{[%emt 00:00:22]} 3. e4 {[%clk 00:25:05]} {[%emt 00:00:08]} Nf6 {[%clk
00:24:10]} {[%emt 00:00:02]} 4. Nc3 {[%clk 00:25:06]} {[%emt 00:00:04]} e5
{[%clk 00:24:13]} {[%emt 00:00:02]} 5. d5 {[%clk 00:24:39]} {[%emt 00:00:31]}
b5 {[%clk 00:24:17]} {[%emt 00:00:02]} 6. a3 {[%clk 00:24:15]} {[%emt
00:00:29]} a6 {[%clk 00:23:43]} {[%emt 00:00:38]} 7. Bg5 {[%clk 00:24:12]}
{[%emt 00:00:08]} Be7 {[%clk 00:22:53]} {[%emt 00:00:54]} 8. Be2 {[%clk
00:23:52]} {[%emt 00:00:26]} Nbd7 {[%clk 00:17:44]} {[%emt 00:05:15]} 9. Nf3
{[%clk 00:23:31]} {[%emt 00:00:25]} h6 {[%clk 00:16:58]} {[%emt 00:00:50]} 10.
Bh4 {[%clk 00:23:34]} {[%emt 00:00:03]} Bd6 {[%clk 00:16:32]} {[%emt 00:00:31]}
11. O-O {[%clk 00:23:21]} {[%emt 00:00:18]} O-O {[%clk 00:16:35]} {[%emt
00:00:02]} 12. Nd2 {[%clk 00:22:33]} {[%emt 00:00:53]} Re8 {[%clk 00:16:17]}
{[%emt 00:00:23]} 13. a4 {[%clk 00:22:20]} {[%emt 00:00:18]} Rb8 {[%clk
00:15:40]} {[%emt 00:00:43]} 14. axb5 {[%clk 00:22:04]} {[%emt 00:00:21]} axb5
{[%clk 00:15:43]} {[%emt 00:00:02]} 15. b3 {[%clk 00:20:55]} {[%emt 00:01:13]}
b4 {[%clk 00:15:34]} {[%emt 00:00:14]} 16. Na4 {[%clk 00:19:24]} {[%emt
00:01:36]} c3 {[%clk 00:15:38]} {[%emt 00:00:01]} 17. Nc4 {[%clk 00:19:02]}
{[%emt 00:00:27]} Ra8 {[%clk 00:13:51]} {[%emt 00:01:49]} 18. Nxd6 {[%clk
00:16:14]} {[%emt 00:02:56]} cxd6 {[%clk 00:13:54]} {[%emt 00:00:02]} 19. Bd3
{[%clk 00:15:28]} {[%emt 00:00:51]} Rb8 {[%clk 00:12:59]} {[%emt 00:01:01]} 20.
Qc2 {[%clk 00:14:39]} {[%emt 00:00:54]} Nf8 {[%clk 00:12:55]} {[%emt 00:00:09]}
21. h3 {[%clk 00:13:06]} {[%emt 00:01:38]} Ng6 {[%clk 00:12:55]} {[%emt
00:00:05]} 22. Bg3 {[%clk 00:13:10]} {[%emt 00:00:01]} Nh5 {[%clk 00:12:46]}
{[%emt 00:00:13]} 23. Rae1 {[%clk 00:12:57]} {[%emt 00:00:18]} Nxg3 {[%clk
00:12:35]} {[%emt 00:00:15]} 24. fxg3 {[%clk 00:13:01]} {[%emt 00:00:01]} Qg5
{[%clk 00:12:17]} {[%emt 00:00:24]} 25. Qf2 {[%clk 00:12:52]} {[%emt 00:00:13]}
Re7 {[%clk 00:12:20]} {[%emt 00:00:03]} 26. Re3 {[%clk 00:12:27]} {[%emt
00:00:30]} Bd7 {[%clk 00:10:57]} {[%emt 00:01:28]} 27. h4 {[%clk 00:12:01]}
{[%emt 00:00:31]} Qh5 {[%clk 00:09:59]} {[%emt 00:01:03]} 28. Rf3 {[%clk
00:11:20]} {[%emt 00:00:46]} Nh8 {[%clk 00:08:56]} {[%emt 00:01:08]} 29. Be2
{[%clk 00:11:08]} {[%emt 00:00:19]} Qg6 {[%clk 00:07:35]} {[%emt 00:01:24]} 30.
Qa7 {[%clk 00:08:47]} {[%emt 00:02:25]} Rbe8 {[%clk 00:07:01]} {[%emt
00:00:39]} 31. Re3 {[%clk 00:07:21]} {[%emt 00:01:32]} Bb5 {[%clk 00:05:26]}
{[%emt 00:01:40]} 32. Qb6 {[%clk 00:06:06]} {[%emt 00:01:19]} Bxe2 {[%clk
00:05:29]} {[%emt 00:00:02]} 33. Rxe2 {[%clk 00:06:10]} {[%emt 00:00:02]} Qxg3
{[%clk 00:05:22]} {[%emt 00:00:12]} 34. Qxb4 {[%clk 00:06:08]} {[%emt
00:00:06]} Qd3 {[%clk 00:03:25]} {[%emt 00:02:02]} 35. Nxc3 {[%clk 00:04:53]}
{[%emt 00:01:21]} Rc7 {[%clk 00:03:15]} {[%emt 00:00:14]} 36. Rf3 {[%clk
00:03:37]} {[%emt 00:01:21]} Qa6 {[%clk 00:02:40]} {[%emt 00:00:40]} 37. Ra2
{[%clk 00:02:36]} {[%emt 00:01:06]} Qc8 {[%clk 00:02:29]} {[%emt 00:00:16]} 38.
Ne2 {[%clk 00:02:10]} {[%emt 00:00:31]} Rd8 {[%clk 00:02:23]} {[%emt 00:00:13]}
39. Kh2 {[%clk 00:01:39]} {[%emt 00:00:35]} Ng6 {[%clk 00:02:18]} {[%emt
00:00:09]} 40. Qe1 {[%clk 00:01:17]} {[%emt 00:00:27]} Rc2 {[%clk 00:02:06]}
{[%emt 00:00:18]} 41. Rxc2 {[%clk 00:00:52]} {[%emt 00:00:30]} Qxc2 {[%clk
00:02:09]} {[%emt 00:00:01]} 42. Nc1 {[%clk 00:00:25]} {[%emt 00:00:32]} Nf4
{[%clk 00:01:57]} {[%emt 00:00:17]} 43. Rf2 {[%clk 00:00:23]} {[%emt 00:00:07]}
Qb1 {[%clk 00:01:44]} {[%emt 00:00:17]} 44. Rf1 {[%clk 00:00:12]} {[%emt
00:00:16]} Rc8 {[%clk 00:01:31]} {[%emt 00:00:18]} 45. Ne2 {[%clk 00:00:09]}
{[%emt 00:00:08]} Qxb3 {[%clk 00:00:47]} {[%emt 00:00:49]} 46. Nxf4 {[%clk
00:00:11]} {[%emt 00:00:03]} exf4 {[%clk 00:00:51]} {[%emt 00:00:01]} 47. Rxf4
{[%clk 00:00:14]} {[%emt 00:00:03]} Qb2 {[%clk 00:00:31]} {[%emt 00:00:25]} 48.
Qg3 {[%clk 00:00:16]} {[%emt 00:00:02]} Qe5 {[%clk 00:00:23]} {[%emt 00:00:13]}
49. Rg4 {[%clk 00:00:12]} {[%emt 00:00:09]} Re8 {[%clk 00:00:16]} {[%emt
00:00:12]} 50. Qxe5 {[%clk 00:00:09]} {[%emt 00:00:08]} Rxe5 {[%clk 00:00:20]}
{[%emt 00:00:01]} 51. Kg3 {[%clk 00:00:11]} {[%emt 00:00:03]} g5 {[%clk
00:00:19]} {[%emt 00:00:05]} 52. hxg5 {[%clk 00:00:14]} {[%emt 00:00:03]} Rxg5
{[%clk 00:00:17]} {[%emt 00:00:07]} 53. Rxg5+ {[%clk 00:00:17]} {[%emt
00:00:02]} hxg5 {[%clk 00:00:21]} 54. Kg4 {[%clk 00:00:21]} {[%emt 00:00:01]}
f6 {[%clk 00:00:26]} {[%emt 00:00:02]} 55. Kf5 {[%clk 00:00:25]} Kf7 {[%clk
00:00:30]} 56. g4 {[%clk 00:00:29]} {[%emt 00:00:01]} Ke7 {[%clk 00:00:13]}
{[%emt 00:00:22]} 57. Kg6 {[%clk 00:00:33]} f5 {[%clk 00:00:06]} {[%emt
00:00:13]} 58. Kxf5 {[%clk 00:00:36]} {[%emt 00:00:01]} 1-0

[Event "New Zealand Rapid Championship"]
[Site "Wellington"]
[Date "2023.01.12"]
[Round "8.11"]
[White "Park-Tamati, Philli"]
[Black "Ning, Isabelle Yixuan"]
[Result "1-0"]
[TimeControl "25+5"]
[BlackTitle "WCM"]
[WhiteFideId "4309090"]
[BlackFideId "4307763"]
[WhiteElo "1861"]
[BlackElo "1911"]

1. d4 {[%clk 00:25:08]} {[%emt 00:00:03]} Nf6 {[%clk 00:25:06]} {[%emt
00:00:03]} 2. Bf4 {[%clk 00:25:11]} g6 {[%clk 00:25:05]} {[%emt 00:00:07]} 3.
Nc3 {[%clk 00:25:12]} {[%emt 00:00:04]} d5 {[%clk 00:25:06]} {[%emt 00:00:04]}
4. e3 {[%clk 00:25:14]} {[%emt 00:00:03]} Bg7 {[%clk 00:25:07]} {[%emt
00:00:04]} 5. h4 {[%clk 00:25:10]} {[%emt 00:00:08]} h5 {[%clk 00:25:05]}
{[%emt 00:00:07]} 6. Be2 {[%clk 00:25:00]} {[%emt 00:00:15]} c6 {[%clk
00:24:58]} {[%emt 00:00:13]} 7. Nf3 {[%clk 00:24:56]} {[%emt 00:00:08]} O-O
{[%clk 00:23:17]} {[%emt 00:01:47]} 8. Qd2 {[%clk 00:23:56]} {[%emt 00:01:04]}
Nbd7 {[%clk 00:20:57]} {[%emt 00:02:26]} 9. Ne5 {[%clk 00:23:34]} {[%emt
00:00:28]} Nxe5 {[%emt 00:03:52]} 10. Bxe5 {[%clk 00:23:35]} {[%emt 00:00:01]}
Ne8 {[%clk 00:15:28]} {[%emt 00:01:49]} 11. Bxg7 {[%clk 00:23:07]} {[%emt
00:00:33]} Kxg7 {[%clk 00:13:39]} {[%emt 00:00:42]} 12. e4 {[%clk 00:22:47]}
dxe4 13. Nxe4 Nd6 {[%clk 00:11:34]} {[%emt 00:00:29]} 14. Ng5 Bf5 {[%clk
00:10:46]} {[%emt 00:02:18]} 15. O-O-O {[%clk 00:21:55]} 1-0

[Event "New Zealand Rapid Championship"]
[Site "Wellington"]
[Date "2023.01.12"]
[Round "8.12"]
[White "Perrin, Brent"]
[Black "Wang, Justin Zhide"]
[Result "0-1"]
[TimeControl "25+5"]
[WhiteFideId "451380"]
[BlackFideId "4312830"]
[WhiteElo "1856"]
[BlackElo "1619"]

1. e4 {[%clk 00:25:09]} e6 {[%clk 00:25:06]} {[%emt 00:00:05]} 2. Qe2 {[%emt
00:00:11]} Be7 {[%clk 00:24:49]} {[%emt 00:00:20]} 3. Nf3 {[%clk 00:25:07]}
{[%emt 00:00:02]} d5 {[%clk 00:24:49]} {[%emt 00:00:05]} 4. d3 {[%clk
00:24:59]} {[%emt 00:00:13]} Nf6 {[%clk 00:24:51]} {[%emt 00:00:04]} 5. g3
{[%clk 00:24:59]} {[%emt 00:00:05]} b6 {[%clk 00:24:51]} {[%emt 00:00:05]} 6.
Bg2 {[%clk 00:25:00]} {[%emt 00:00:03]} Bb7 {[%clk 00:24:54]} {[%emt 00:00:03]}
7. e5 {[%clk 00:22:40]} {[%emt 00:02:24]} Nfd7 {[%clk 00:24:54]} {[%emt
00:00:06]} 8. O-O {[%clk 00:22:37]} {[%emt 00:00:08]} c5 {[%clk 00:24:58]}
{[%emt 00:00:01]} 9. c3 {[%clk 00:21:18]} {[%emt 00:01:24]} Nc6 {[%clk
00:24:59]} {[%emt 00:00:04]} 10. d4 {[%clk 00:21:14]} {[%emt 00:00:08]} Qc7
{[%clk 00:24:45]} {[%emt 00:00:20]} 11. Bf4 {[%clk 00:20:13]} {[%emt 00:01:06]}
a5 {[%clk 00:24:41]} {[%emt 00:00:09]} 12. Na3 {[%clk 00:19:21]} {[%emt
00:00:57]} Ba6 {[%clk 00:24:26]} {[%emt 00:00:20]} 13. Nb5 {[%clk 00:19:19]}
{[%emt 00:00:06]} Bxb5 {[%clk 00:24:12]} {[%emt 00:00:19]} 14. Qxb5 {[%clk
00:19:22]} {[%emt 00:00:02]} c4 {[%clk 00:24:03]} {[%emt 00:00:15]} 15. Qa4
{[%clk 00:18:39]} {[%emt 00:00:47]} h6 {[%clk 00:23:48]} {[%emt 00:00:20]} 16.
Qc2 {[%clk 00:18:08]} {[%emt 00:00:37]} b5 {[%clk 00:23:45]} {[%emt 00:00:08]}
17. Rfe1 {[%clk 00:16:42]} {[%emt 00:01:30]} Nb6 {[%clk 00:23:44]} {[%emt
00:00:08]} 18. h4 {[%clk 00:16:00]} {[%emt 00:00:45]} b4 {[%clk 00:23:28]}
{[%emt 00:00:22]} 19. h5 {[%clk 00:15:12]} {[%emt 00:00:52]} Kd7 {[%clk
00:23:04]} {[%emt 00:00:30]} 20. Qe2 {[%clk 00:13:44]} {[%emt 00:01:32]} Rag8
{[%clk 00:23:00]} {[%emt 00:00:09]} 21. Nh2 {[%clk 00:13:00]} {[%emt 00:00:49]}
g6 {[%clk 00:22:49]} {[%emt 00:00:16]} 22. Bd2 {[%clk 00:12:43]} {[%emt
00:00:22]} Qd8 {[%clk 00:22:26]} {[%emt 00:00:29]} 23. b3 {[%clk 00:12:09]}
{[%emt 00:00:39]} Qc7 {[%clk 00:21:09]} {[%emt 00:01:22]} 24. Nf1 {[%clk
00:11:10]} {[%emt 00:01:03]} gxh5 {[%clk 00:20:59]} {[%emt 00:00:15]} 25. Qxh5
{[%clk 00:11:06]} {[%emt 00:00:09]} Nd8 {[%clk 00:20:50]} {[%emt 00:00:15]} 26.
Ne3 {[%clk 00:10:39]} {[%emt 00:00:31]} Ke8 {[%clk 00:20:20]} {[%emt 00:00:36]}
27. bxc4 {[%clk 00:08:46]} {[%emt 00:01:58]} Nxc4 {[%clk 00:20:20]} {[%emt
00:00:05]} 28. Nxc4 {[%clk 00:08:05]} {[%emt 00:00:46]} Qxc4 {[%clk 00:20:19]}
{[%emt 00:00:06]} 29. Bf1 {[%clk 00:07:50]} {[%emt 00:00:19]} Qc7 {[%clk
00:20:17]} {[%emt 00:00:08]} 30. cxb4 {[%clk 00:07:51]} {[%emt 00:00:05]} axb4
{[%clk 00:20:19]} {[%emt 00:00:03]} 31. Bb5+ {[%clk 00:07:26]} {[%emt
00:00:30]} Kf8 {[%clk 00:19:53]} {[%emt 00:00:31]} 32. Bxh6+ {[%clk 00:07:22]}
{[%emt 00:00:08]} Rxh6 {[%clk 00:19:57]} {[%emt 00:00:02]} 33. Qxh6+ {[%clk
00:07:25]} {[%emt 00:00:02]} Rg7 {[%clk 00:20:01]} {[%emt 00:00:01]} 34. Qd2
{[%clk 00:05:04]} {[%emt 00:02:25]} Qb6 {[%clk 00:19:49]} {[%emt 00:00:18]} 35.
Ba4 {[%clk 00:04:52]} {[%emt 00:00:16]} b3 {[%clk 00:19:39]} {[%emt 00:00:16]}
36. Reb1 {[%clk 00:04:02]} {[%emt 00:00:55]} Bg5 {[%clk 00:18:41]} {[%emt
00:01:03]} 37. Qb2 {[%clk 00:03:44]} {[%emt 00:00:23]} f6 {[%clk 00:18:07]}
{[%emt 00:00:39]} 38. Qxb3 {[%clk 00:02:53]} {[%emt 00:00:56]} Qxd4 {[%clk
00:18:00]} {[%emt 00:00:12]} 39. Qb5 {[%clk 00:01:20]} {[%emt 00:01:37]} Re7
{[%clk 00:17:44]} {[%emt 00:00:21]} 40. exf6 {[%clk 00:01:14]} {[%emt
00:00:11]} Bxf6 {[%clk 00:17:48]} {[%emt 00:00:02]} 41. Rd1 {[%clk 00:01:14]}
{[%emt 00:00:04]} Qe4 {[%clk 00:17:30]} {[%emt 00:00:23]} 42. Re1 {[%clk
00:01:12]} {[%emt 00:00:07]} Qf3 {[%clk 00:17:20]} {[%emt 00:00:16]} 43. Rad1
{[%clk 00:00:47]} {[%emt 00:00:30]} Rh7 {[%clk 00:17:15]} {[%emt 00:00:10]} 44.
Qe8+ {[%clk 00:00:44]} {[%emt 00:00:07]} Kg7 {[%clk 00:17:19]} 45. Qd7+ {[%clk
00:00:17]} {[%emt 00:00:32]} Nf7 {[%clk 00:17:23]} {[%emt 00:00:01]} 46. Qxf7+
{[%clk 00:00:11]} {[%emt 00:00:11]} Kxf7 {[%clk 00:17:27]} {[%emt 00:00:02]}
0-1

[Event "New Zealand Rapid Championship"]
[Site "Wellington"]
[Date "2023.01.12"]
[Round "8.13"]
[White "Sun, Wanyao Sarah"]
[Black "Suggate, Romero"]
[Result "1-0"]
[TimeControl "25+5"]
[WhiteFideId "4313887"]
[BlackFideId "4313534"]
[WhiteElo "1270"]
[BlackElo "1806"]

1. e4 {[%clk 00:25:08]} {[%emt 00:00:01]} c5 {[%clk 00:25:09]} 2. Nf3 {[%clk
00:25:12]} {[%emt 00:00:01]} Nf6 {[%clk 00:25:13]} {[%emt 00:00:01]} 3. Nc3
{[%clk 00:25:13]} {[%emt 00:00:04]} d5 {[%clk 00:25:17]} 4. exd5 {[%clk
00:25:08]} {[%emt 00:00:10]} Nxd5 {[%clk 00:25:21]} {[%emt 00:00:01]} 5. d4
{[%clk 00:25:06]} {[%emt 00:00:07]} Nxc3 {[%clk 00:25:07]} {[%emt 00:00:19]} 6.
bxc3 {[%clk 00:25:08]} {[%emt 00:00:02]} e6 {[%clk 00:25:01]} {[%emt 00:00:12]}
7. Bd3 {[%clk 00:25:07]} {[%emt 00:00:05]} Nc6 {[%clk 00:25:04]} {[%emt
00:00:04]} 8. O-O {[%clk 00:25:05]} {[%emt 00:00:06]} Be7 {[%clk 00:24:37]}
{[%emt 00:00:33]} 9. Bf4 {[%clk 00:24:52]} {[%emt 00:00:16]} O-O {[%clk
00:24:35]} {[%emt 00:00:07]} 10. Ne5 {[%clk 00:24:19]} {[%emt 00:00:38]} Nxe5
{[%clk 00:23:46]} {[%emt 00:00:54]} 11. Bxe5 {[%clk 00:24:19]} {[%emt
00:00:04]} Bd6 {[%clk 00:22:35]} {[%emt 00:01:17]} 12. Bxd6 {[%clk 00:20:58]}
{[%emt 00:03:26]} Qxd6 {[%clk 00:22:38]} {[%emt 00:00:01]} 13. Re1 {[%clk
00:20:36]} {[%emt 00:00:27]} b6 {[%clk 00:21:07]} {[%emt 00:01:38]} 14. Re3
{[%clk 00:19:08]} {[%emt 00:01:32]} g6 {[%clk 00:20:06]} {[%emt 00:01:07]} 15.
Rh3 {[%clk 00:16:58]} {[%emt 00:02:15]} e5 {[%clk 00:17:25]} {[%emt 00:02:45]}
16. Rg3 {[%clk 00:15:07]} {[%emt 00:01:56]} exd4 {[%clk 00:16:52]} {[%emt
00:00:39]} 17. cxd4 {[%clk 00:14:52]} {[%emt 00:00:20]} Qxd4 {[%clk 00:16:51]}
{[%emt 00:00:06]} 18. Rc1 {[%clk 00:14:16]} {[%emt 00:00:41]} Be6 {[%clk
00:16:48]} {[%emt 00:00:08]} 19. c3 {[%clk 00:13:33]} {[%emt 00:00:47]} Qf4
{[%clk 00:16:32]} {[%emt 00:00:22]} 20. Rf3 {[%clk 00:12:48]} {[%emt 00:00:49]}
Qd6 {[%clk 00:16:13]} {[%emt 00:00:24]} 21. Rg3 {[%clk 00:11:49]} {[%emt
00:01:04]} Rfd8 {[%clk 00:14:58]} {[%emt 00:01:21]} 22. Qf3 {[%clk 00:10:50]}
{[%emt 00:01:00]} Bxa2 {[%clk 00:14:36]} {[%emt 00:00:31]} 23. c4 {[%clk
00:09:15]} {[%emt 00:01:39]} Bb3 {[%clk 00:13:34]} {[%emt 00:01:08]} 24. h4
{[%clk 00:08:38]} {[%emt 00:00:40]} Ba4 {[%clk 00:13:19]} {[%emt 00:00:22]} 25.
h5 {[%clk 00:08:08]} {[%emt 00:00:33]} Bc6 {[%clk 00:13:15]} {[%emt 00:00:11]}
26. Qe3 {[%clk 00:07:27]} {[%emt 00:00:43]} Qd4 {[%clk 00:12:04]} {[%emt
00:01:18]} 27. hxg6 {[%clk 00:05:44]} {[%emt 00:01:48]} fxg6 {[%clk 00:11:54]}
{[%emt 00:00:15]} 28. Qe6+ {[%clk 00:05:33]} {[%emt 00:00:15]} Kh8 {[%clk
00:11:57]} {[%emt 00:00:03]} 29. Qxc6 {[%clk 00:05:31]} {[%emt 00:00:06]} Rac8
{[%clk 00:11:38]} {[%emt 00:00:25]} 30. Qe6 {[%clk 00:05:22]} {[%emt 00:00:04]}
Rf8 {[%clk 00:11:02]} {[%emt 00:00:52]} 31. Rf3 {[%clk 00:04:44]} {[%emt
00:00:42]} Rce8 {[%clk 00:09:12]} {[%emt 00:01:56]} 32. Rxf8+ {[%clk 00:04:10]}
{[%emt 00:00:39]} Rxf8 {[%emt 00:00:02]} 33. Qe2 {[%clk 00:04:06]} {[%emt
00:00:05]} Rd8 {[%clk 00:09:01]} {[%emt 00:00:24]} 34. Bc2 {[%clk 00:03:46]}
{[%emt 00:00:21]} Rf8 {[%clk 00:08:50]} {[%emt 00:00:20]} 35. Rd1 {[%clk
00:03:40]} {[%emt 00:00:08]} Qf6 {[%clk 00:08:53]} {[%emt 00:00:04]} 36. Rd7
{[%clk 00:02:17]} {[%emt 00:01:27]} Qa1+ {[%clk 00:08:53]} {[%emt 00:00:06]} 37.
Kh2 {[%clk 00:02:14]} {[%emt 00:00:06]} Qf6 {[%clk 00:08:56]} {[%emt 00:00:04]}
38. Re7 {[%clk 00:01:46]} {[%emt 00:00:28]} Qxf2 {[%clk 00:08:21]} {[%emt
00:00:45]} 39. Qxf2 {[%clk 00:01:42]} {[%emt 00:00:09]} Rxf2 {[%clk 00:08:25]}
{[%emt 00:00:02]} 40. Ba4 {[%clk 00:01:37]} {[%emt 00:00:09]} Ra2 {[%clk
00:08:27]} {[%emt 00:00:04]} 41. Bb5 {[%clk 00:01:36]} {[%emt 00:00:06]} Ra5
{[%clk 00:08:13]} {[%emt 00:00:20]} 42. Bc6 {[%clk 00:00:51]} {[%emt 00:00:47]}
Ra3 {[%clk 00:07:32]} {[%emt 00:00:50]} 43. Bd5 {[%clk 00:00:48]} {[%emt
00:00:07]} Ra5 {[%clk 00:06:30]} {[%emt 00:01:07]} 44. Re8+ {[%clk 00:00:45]}
{[%emt 00:00:08]} Kg7 {[%clk 00:06:33]} {[%emt 00:00:02]} 45. Re7+ {[%clk
00:00:47]} {[%emt 00:00:03]} Kh6 {[%clk 00:06:30]} {[%emt 00:00:08]} 46. Bg8
{[%clk 00:00:46]} {[%emt 00:00:06]} a6 {[%clk 00:06:25]} {[%emt 00:00:11]} 47.
Rxh7+ {[%clk 00:00:49]} {[%emt 00:00:03]} Kg5 {[%clk 00:06:28]} 48. Rc7 {[%clk
00:00:45]} {[%emt 00:00:07]} Ra4 {[%clk 00:06:15]} {[%emt 00:00:20]} 49. Rc6
{[%clk 00:00:40]} {[%emt 00:00:10]} b5 {[%clk 00:06:18]} {[%emt 00:00:03]} 50.
cxb5 {[%clk 00:00:38]} {[%emt 00:00:06]} axb5 {[%clk 00:06:20]} {[%emt
00:00:03]} 51. Rxc5+ {[%clk 00:00:41]} {[%emt 00:00:02]} Kf4 {[%clk 00:06:24]}
{[%emt 00:00:02]} 52. Rxb5 {[%clk 00:00:41]} {[%emt 00:00:05]} g5 {[%clk
00:06:27]} {[%emt 00:00:02]} 53. Rc5 {[%clk 00:00:39]} {[%emt 00:00:07]} Ra3
{[%clk 00:06:22]} {[%emt 00:00:12]} 54. Rc4+ {[%clk 00:00:42]} {[%emt
00:00:02]} Kf5 {[%clk 00:06:25]} {[%emt 00:00:01]} 55. Rc5+ {[%clk 00:00:43]}
{[%emt 00:00:04]} Kf4 {[%clk 00:06:28]} {[%emt 00:00:02]} 56. Rc2 {[%clk
00:00:38]} {[%emt 00:00:08]} Kf5 {[%clk 00:06:26]} {[%emt 00:00:09]} 57. Rf2+
{[%clk 00:00:39]} {[%emt 00:00:03]} Kg4 {[%clk 00:06:24]} {[%emt 00:00:07]} 58.
Be6+ {[%clk 00:00:40]} {[%emt 00:00:03]} Kh4 {[%clk 00:06:27]} {[%emt
00:00:02]} 59. Rf3 {[%clk 00:00:41]} {[%emt 00:00:03]} Ra4 {[%clk 00:06:29]}
{[%emt 00:00:05]} 60. Rh3# {[%emt 00:00:03]} 1-0